Cogmind - Beta 10.2 @@@ ROGUE MODE // 2021.04.01 @ 15:01:53 // AFD2021/Volatile Player: Regalus27 Result: Destroyed by Y-54 Guardian with Gatling Laser Performance ------------- Evolutions (3) 1500 Regions Visited (5) 1000 Robots Destroyed (36) 180 Value Destroyed (1106) 1106 Prototype IDs (1) 20 Alien Tech Used (0) 0 Bonus (0) 0 TOTAL SCORE: 3806 Bonus ------- None Cogmind --------- Core Integrity 0/700 Matter 134/300 Energy 100/100 System Corruption 1% Temperature Cool (196) Movement Core (50) Location -7/Factory Parts ------- > --- POWER (2) -------- (None) > --- PROPULSION (5) --- (None) > --- UTILITY (3) ------ (None) > --- WEAPON (3) ------- (None) > --- INVENTORY (4) ---- Improved ECM Suite Peak State ------------ > --- POWER ------------ Enhanced Nuclear Core Enhanced Nuclear Core > --- PROPULSION ------- Armored Huge Wheel > --- UTILITY ---------- Improved Cooling System > --- WEAPON ----------- Flak Cannon Gauss Cannon Spear > --- INVENTORY -------- Improved ECM Suite Light Assault Rifle [Rating: 33] Favorites ----------- Power Light Ion Engine Engine Light Ion Engine Power Core Enhanced Nuclear Core Propulsion Improved Aluminum Leg Leg Improved Aluminum Leg Wheel Armored Huge Wheel Utility Small Storage Unit Device Terrain Scanner Storage Small Storage Unit Protection Insulated Plating Weapon Heavy Assault Rifle Energy Gun EM Pulse Gun Ballistic Gun Heavy Assault Rifle Ballistic Cannon Flak Cannon Piercing Weapon Spear Build | -11 -10 -9 -9 -8 -7 ------- Run | Scr Mat Mat Min Mat Fac Slots Evolved 6 | . . 2 . 2 2 Power 1 | . . . . 1 . Propulsion 3 | . . 1 . 1 1 Utility 1 | . . 1 . . . Weapon 1 | . . . . . 1 Parts Attached 38 | . 6 5 2 12 13 Power 6 | . . 1 . 2 3 Engine 3 | . . 1 . 1 1 Core 3 | . . . . 1 2 Reactor . | . . . . . . Propulsion 15 | . 2 2 . 7 4 Treads . | . . . . . . Leg 14 | . 2 2 . 7 3 Wheel 1 | . . . . . 1 Hover . | . . . . . . Flight . | . . . . . . Utility 8 | . 1 2 . 3 2 Device 3 | . . 1 . 1 1 Storage 4 | . 1 1 . 2 . Processor . | . . . . . . Hackware . | . . . . . . Protection 1 | . . . . . 1 Artifact . | . . . . . . Weapon 9 | . 3 . 2 . 4 Energy Gun . | . . . . . . Energy Cannon . | . . . . . . Ballistic Gun 6 | . 3 . 2 . 1 Ballistic Cannon 2 | . . . . . 2 Launcher . | . . . . . . Special Weapon . | . . . . . . Impact Weapon . | . . . . . . Slashing Weapon . | . . . . . . Piercing Weapon 1 | . . . . . 1 Special Melee Weapon . | . . . . . . Unidentified Prototypes 1 | . . . . . 1 Parts Lost 30 | . . 3 2 13 12 Power 6 | . . 1 . 2 3 Propulsion 13 | . . 1 1 8 3 Utility 4 | . . 1 . 1 2 Weapon 7 | . . . 1 2 4 Highest Loss Streak 12 | . . 1 2 7 12 Average Slot Usage (%) 77 | . 85 89 82 92 32 Engine 10 | . 14 11 11 15 . Leg 25 | . 28 33 27 33 4 Device 6 | . . 9 11 7 5 Storage 12 | . 14 14 11 18 . Energy Gun 1 | . 5 . . . . Ballistic Gun 16 | . 21 22 22 17 . Ballistic Cannon 1 | . . . . . 6 Naked Turns 15 | . . . . 5 10 Heaviest Build 33 | 11 13 18 14 30 33 Greatest Support 48 | 20 26 39 39 48 28 Greatest Overweight (x) 3 | . 1 . . 1 3 Average Overweight (x) . | . . . . . . Largest Inventory Capacity 14 | 6 14 8 6 10 4 Average Capacity 6 | 6 6 6 6 8 4 Most Carried 8 | 6 6 6 6 8 4 Average Carried 5 | 6 5 5 5 5 2 Final Capacity 6 | 6 6 6 6 4 4 Final Carried 6 | 6 6 6 5 4 1 Class Distribution -------------------- 95% | Mutant 4% | Scavenger-Mutant Dominant Class ---------------- Mutant | -10/Materials Mutant | -9/Materials Mutant | -9/Mines Mutant | -8/Materials Mutant | -7/Factory Resources | -11 -10 -9 -9 -8 -7 ----------- Run | Scr Mat Mat Min Mat Fac Matter Collected 697 | 200 . 183 52 203 59 Remotely . | . . . . . . Salvage Created 1220 | . 77 490 71 425 157 Parts 62 | . 3 25 6 18 10 Haulers Intercepted . | . . . . . . Recyclers Shooed 1 | . . . . 1 . Parts Field Recycled . | . . . . . . Retrieved Matter . | . . . . . . Parts Self-Destructed . | . . . . . . Prevented . | . . . . . . Kills | -11 -10 -9 -9 -8 -7 ------- Run | Scr Mat Mat Min Mat Fac Combat Hostiles Destroyed 26 | . 2 7 4 10 3 Melee 1 | . . . . . 1 Guns 16 | . 1 7 2 6 . Cannons 2 | . . . . . 2 AOE 7 | . 1 . 2 4 . Classes Destroyed 9 | . 1 4 1 2 1 Worker 1 | . . 1 . . . Builder 3 | . . 2 . . 1 Tunneler 1 | . . . . . 1 Recycler 4 | . . 3 . 1 . Watcher 1 | . . 1 . . . Swarmer 4 | . . . 4 . . Grunt 20 | . 2 7 . 8 3 Brawler 1 | . . . . 1 . Hunter 1 | . . . . 1 . Best Kill Streak 7 | . 2 7 4 7 2 Combat Bots Only 6 | . 2 3 4 6 2 Max Kills in Single Turn 4 | . 2 4 3 3 1 Gunslinging 1 | . . 1 . . . Exploded 2 | . 1 . 2 2 . Melee 1 | . . . . . 1 Uniques/NPCs Destroyed . | . . . . . . Combat | -11 -10 -9 -9 -8 -7 -------- Run | Scr Mat Mat Min Mat Fac Damage Taken 4082 | . 178 707 194 1039 1964 Core 1049 | . 14 37 28 268 702 Absorbed by Shields . | . . . . . . Core Remaining (%) 82 | 100 94 . 83 51 . Volleys Fired 68 | . 6 23 2 22 15 Largest 2 | . 2 2 1 2 2 Hottest 92 | . 60 46 23 46 92 Shots Fired 130 | . 12 46 2 44 26 Gun 105 | . 12 46 2 44 1 Cannon 25 | . . . . . 25 Launcher . | . . . . . . Special . | . . . . . . Kinetic 124 | . 6 46 2 44 26 Thermal . | . . . . . . Explosive . | . . . . . . Electromagnetic 6 | . 6 . . . . Robot Hit Streak 8 | . 2 5 4 8 4 Robot Miss Streak 4 | . 4 4 . 2 3 Penetration Max . | . . . . . . Secondary Targets 3 | . . 1 . 2 . Max Gunslinging Chain 1 | . . 1 . 1 . Shots Hit Robots 87 | . 6 26 2 29 24 Core Hits 78 | . 4 20 5 29 20 Critical Hits . | . . . . . . Critical Kills . | . . . . . . Critical Parts Destroyed . | . . . . . . Melee Attacks 5 | . . . . . 5 Impact . | . . . . . . Slashing . | . . . . . . Piercing 5 | . . . . . 5 Sneak Attacks 1 | . . . . . 1 Combat Hostiles . | . . . . . . Follow-up Attacks . | . . . . . . Damage Inflicted 3953 | . 187 1247 130 1574 815 Guns 930 | . 76 386 30 438 . Cannons 456 | . . . . . 456 Explosions 2411 | . 111 861 100 1136 203 Melee 151 | . . . . . 151 Ramming 5 | . . . . . 5 Kinetic 1331 | . 21 386 30 438 456 Thermal 1321 | . 111 779 . 354 77 Explosive 748 | . . 80 . 590 78 Electromagnetic 397 | . 55 2 100 192 48 Impact . | . . . . . . Slashing . | . . . . . . Piercing 151 | . . . . . 151 Highest Corruption 2 | . . 1 2 1 1 Average Corruption 1 | . . 1 1 1 1 Corruption Purged . | . . . . . . Effects 3 | . . 1 1 1 . Message Errors 2 | . . 1 1 . . Targeting Errors 1 | . . . . 1 . Overload Shots . | . . . . . . Overflow Damage 424 | . . 268 48 40 68 Projectiles . | . . . . . . Explosions 379 | . . 268 48 40 23 Melee 45 | . . . . . 45 Knockbacks 7 | . . . . . 7 Impact . | . . . . . . Kinetic 7 | . . . . . 7 Secondary . | . . . . . . Self-Inflicted Damage 662 | . 78 332 161 . 91 Shots 17 | . 2 8 4 . 3 Rammed 3 | . . . . . 3 Targets Rammed 3 | . . . . . 3 Kicked . | . . . . . . Crushed . | . . . . . . Highest Temperature 233 | . 69 16 . 48 233 Average Temperature 41 | . 32 9 . 17 105 Received Heat Transfer 1650 | . 57 108 . 465 1020 Siege Activations . | . . . . . . Robots Corrupted . | . . . . . . Combat Hostiles . | . . . . . . Parts Fried . | . . . . . . Impact Corruptions . | . . . . . . Robots Melted . | . . . . . . Combat Hostiles . | . . . . . . Parts Melted 1 | . . 1 . . . Heat Transferred 1100 | . 100 550 . 300 150 Parts Sabotaged . | . . . . . . Parts Stolen . | . . . . . . Parts Stripped . | . . . . . . Power Chain Reactions 4 | . 1 1 . 1 1 Missiles Intercepted . | . . . . . . Alert | -11 -10 -9 -9 -8 -7 ------- Run | Scr Mat Mat Min Mat Fac Peak Influence . | . . . . . . Initial 112 | . . 20 96 81 112 Average . | . . . . . . Maximum Alert Level 1 | . . 1 1 1 . Low Security (%) 79 | 100 100 67 51 74 100 Level 1 20 | . . 32 48 25 . Level 2 . | . . . . . . Level 3 . | . . . . . . Level 4 . | . . . . . . Level 5 . | . . . . . . High Security . | . . . . . . Max Security . | . . . . . . Squads Dispatched 3 | . . 2 . . 1 Investigation . | . . . . . . Extermination . | . . . . . . Reinforcement 3 | . . 2 . . 1 Assault . | . . . . . . Garrison . | . . . . . . Intercept . | . . . . . . Construction Impeded . | . . . . . . Haulers Reinforced . | . . . . . . Stealth | -11 -10 -9 -9 -8 -7 --------- Run | Scr Mat Mat Min Mat Fac Distress Signals 6 | . . 4 . 2 . Communications Jammed . | . . . . . . Distress Signals . | . . . . . . Times Spotted 54 | . 2 17 4 17 14 Peak Tracking Total 10 | . 2 4 4 6 10 Tactical Retreats 2 | . . 1 . . 1 Traps | -11 -10 -9 -9 -8 -7 ------- Run | Scr Mat Mat Min Mat Fac Traps Triggered . | . . . . . . Indirectly . | . . . . . . Trap Hack Attempts . | . . . . . . Triggered . | . . . . . . Disarmed . | . . . . . . Reprogrammed . | . . . . . . Reused . | . . . . . . Traps Extracted . | . . . . . . Installed . | . . . . . . Triggered . | . . . . . . Machines | -11 -10 -9 -9 -8 -7 ---------- Run | Scr Mat Mat Min Mat Fac Machines Disabled 7 | . . 2 3 2 . Max in Single Turn 2 | . . 1 2 1 . Machines Sabotaged . | . . . . . . Garrisons Compromised . | . . . . . . Overloaded Fab Kills . | . . . . . . Fab Network Shutdowns . | . . . . . . Hacking | -11 -10 -9 -9 -8 -7 --------- Run | Scr Mat Mat Min Mat Fac Machines Accessed 2 | . . . . 2 . Terminals 2 | . . . . 2 . Fabricators . | . . . . . . Repair Stations . | . . . . . . Recycling Units . | . . . . . . Scanalyzers . | . . . . . . Garrison Access . | . . . . . . Total Hacks 3 | . . . . 3 . Successful 1 | . . . . 1 . Failed 2 | . . . . 2 . Catastrophic . | . . . . . . Database Lockouts . | . . . . . . Manual . | . . . . . . Terminals 3 | . . . . 3 . Fabricators . | . . . . . . Repair Stations . | . . . . . . Recycling Units . | . . . . . . Scanalyzers . | . . . . . . Garrison Access . | . . . . . . Terminal Hacks 1 | . . . . 1 . Record 1 | . . . . 1 . Fabricator Hacks . | . . . . . . Repair Station Hacks . | . . . . . . Recycling Unit Hacks . | . . . . . . Scanalyzer . | . . . . . . Garrison Access Hacks . | . . . . . . Unauthorized Hacks . | . . . . . . Terminals . | . . . . . . Fabricators . | . . . . . . Repair Stations . | . . . . . . Recycling Units . | . . . . . . Scanalyzers . | . . . . . . Garrison Access . | . . . . . . Data Cores Recovered . | . . . . . . Used . | . . . . . . Hacking Detections 1 | . . . . 1 . Full Trace Events . | . . . . . . Feedback Events . | . . . . . . Feedback Blocked . | . . . . . . Robot Schematics Acquired . | . . . . . . Robots Built . | . . . . . . Matter . | . . . . . . Time . | . . . . . . Total Robot Build Rating . | . . . . . . Part Schematics Acquired . | . . . . . . Parts Built . | . . . . . . Matter . | . . . . . . Time . | . . . . . . Total Part Build Rating . | . . . . . . Parts Repaired . | . . . . . . Time . | . . . . . . Parts Recycled . | . . . . . . Recycled Matter . | . . . . . . Retrieved Matter . | . . . . . . Retrieved Components . | . . . . . . Parts Scanalyzed . | . . . . . . Part Schematics Acquired . | . . . . . . Parts Damaged . | . . . . . . Bothacking | -11 -10 -9 -9 -8 -7 ------------ Run | Scr Mat Mat Min Mat Fac Used RIF Installer . | . . . . . . Robots Hacked . | . . . . . . Non-combat . | . . . . . . Combat . | . . . . . . Robot Hacks Applied . | . . . . . . Relay Couplers Released . | . . . . . . Robots Rewired . | . . . . . . Allies Hacked . | . . . . . . Hacks Repelled . | . . . . . . Allies | -11 -10 -9 -9 -8 -7 -------- Run | Scr Mat Mat Min Mat Fac Total Allies 3 | . . . 3 . . Largest Group 3 | . . . 3 3 . Highest-Rated Group 40 | . . . 40 40 . Highest-Rated Ally 16 | . . . 16 16 . Total Orders . | . . . . . . Ally Attacks 7 | . . . . 7 . Total Damage 95 | . . . . 95 . Kills . | . . . . . . Allies Corrupted . | . . . . . . Allies Melted . | . . . . . . Intel | -11 -10 -9 -9 -8 -7 ------- Run | Scr Mat Mat Min Mat Fac Robot Analysis Total . | . . . . . . Derelict Logs Recovered . | . . . . . . Drone Launches . | . . . . . . Drone Recoveries . | . . . . . . Exploration | -11 -10 -9 -9 -8 -7 ------------- Run | Scr Mat Mat Min Mat Fac Turns Passed 1079 | 3 222 205 165 278 206 Spaces Moved 687 | 3 151 98 132 159 144 Core 101 | . . . . 10 91 Treads . | . . . . . . Legs 545 | 3 151 98 132 149 12 Wheels 41 | . . . . . 41 Hover . | . . . . . . Flight . | . . . . . . Fastest Speed 50 | 120 120 120 120 50 50 Average Speed 112 | 120 120 120 120 115 89 Slowest Speed 200 | 120 150 120 120 150 200 Overloaded Moves . | . . . . . . Propulsion Burnouts . | . . . . . . Robots Hopped . | . . . . . . Cave-ins Triggered . | . . . . . . Exploration Rate (%) 20 | 2 30 17 40 28 6 Regions Visited 5 Branch Regions 1 Pre-discovered Areas . | . . . . . . Known Exits Taken . | . . . . . . Unknown Exits Taken 5 | 1 1 1 1 1 . Scrap Searched 1 | . . . 1 . . Spaces Dug . | . . . . . . Terrain Destroyed 230 | . 45 63 44 65 13 Melee . | . . . . . . Projectile 3 | . . . . . 3 AOE 227 | . 45 63 44 65 10 Terrain Rammed . | . . . . . . Walls Destroyed . | . . . . . . Machines Disabled . | . . . . . . Actions | -11 -10 -9 -9 -8 -7 --------- Run | Scr Mat Mat Min Mat Fac Total 856 | 2 184 139 137 208 186 Wait 15 | . . 8 . 5 2 Move 682 | 2 150 97 131 158 144 Hop . | . . . . . . Pick Up 19 | . 7 4 1 5 2 Fast Attach 22 | . 6 3 . 5 8 Attach 15 | . . 2 2 6 5 Detach 5 | . 2 . . 2 1 Swap 1 | . . . . 1 . Drop 21 | . 13 2 1 4 1 Fire 68 | . 6 23 2 22 15 Melee 5 | . . . . . 5 Ram 3 | . . . . . 3 Kick . | . . . . . . Crush . | . . . . . . Escape Stasis . | . . . . . . Rewire . | . . . . . . Trap . | . . . . . . Miscellaneous . | . . . . . . Route ------- -11/Scrapyard -10/Materials -9/Materials -9/Mines -8/Materials -7/Factory History --------- Turn | Location | Event 1 | -11/Scrapyard | Discovered new exit (range 2) 4 | -11/Scrapyard | Entered Materials 187 | -10/Materials | Discovered new exit (range 10) 226 | -10/Materials | Entered another Materials area 226 | -9/Materials | Evolved 2 slots: Propulsion x1, Utility x1 326 | -9/Materials | Build established: Mutant 416 | -9/Materials | Discovered new exit (range 13) 431 | -9/Materials | Entered Mines 565 | -9/Mines | Discovered new exit (range 9) 584 | -9/Mines | Assisted by bots powering up and referring to "LRC-V3" 596 | -9/Mines | Entered Materials 596 | -8/Materials | Accompanied by 3 allies 596 | -8/Materials | Evolved 2 slots: Power x1, Propulsion x1 841 | -8/Materials | Lost 4 parts (1p2n1u) 850 | -8/Materials | Discovered new exit (range 16) 874 | -8/Materials | Entered Factory 874 | -7/Factory | Evolved 2 slots: Propulsion x1, Weapon x1 899 | -7/Factory | Lost 7 parts (1p4n2w) 1070 | -7/Factory | Core integrity fell below 50% 1079 | -7/Factory | Core integrity fell below 20% 1080 | -7/Factory | Destroyed by Y-54 Guardian with Gatling Laser Last Messages --------------- 01068_ Aluminum Leg destroyed. 01068_ Enh. Nuclear Core destroyed. 01069_ K-01 Serf collects debris. 01070_ Slug penetrates G-50 Soldier. 01070_ G-50 Soldier knocked back. 01071_ Gauss Cannon destroyed. 01072_ U-05 Engineer lays Concrete. 01072_ Lgt. Assault Rifle destroyed. 01073_ U-05 Engineer lays Concrete. 01074_ K-01 Serf collects debris. 01075_ Enh. Nuclear Core destroyed. 01075_ U-05 Engineer lays Concrete. 01076_ Spear destroyed. 01076_ U-05 Engineer lays Concrete. 01077_ U-05 Engineer builds a Wall. 01077_ K-01 Serf collects debris. 01078_ Slammed into G-47 Trooper. 01079_ Penetrated by Slug. 01079_ Slammed into G-50 Soldier. 01080_ Slammed into G-47 Trooper. Map ----- +----------------------------------------------------+ | ?????????????????????????????????????????????????? | | ?????????????????????????????????????????????????? | | ?????????????????????????????????????????????????? | | ?????????????????????????????????????????????????? | | ?????????????????????????????????????????????????? | | ?????????????????????????????????????????????????? | | ?????????????????????????????????????????????????? | | ?????????????????????????????????????????????????? | | ?????????????????????????????????????????????????? | | ?????????????????????????????????????????????????? | | ?????????????????????????????????????????????????? | | ?????????????????????????????????????????????????? | | ??????????????????????????????????????????? ??? | | ??????????????????????????????????????????? ?? | | ????????????????????????????????????# ????" ?? | | ???????????????????????????########## ???" ?? | | ???????????????????????????# ?? ?? | | ???????????????????????????# "??" "?"" " | | ???????????????????????????# """" """" " | | ???????????????????????????# """" """" " | | ???????????????????????????# """" """" " | | ???????????????????????????# """" """" | | ??????????????####?????????# """" """" | | ????????????### ???????# | | ?????????? ###### | | ?????????? @g | | ?????????? Y ggg | | ?????????? h u | | ??????????? ######; ### ### | | ???????????#### ??# g #/#####/######## | | ??????????????### ???# *g; # | | ????????????????# ????# =%g # | | ????????????????# ?????# k; %= + | | ???????????????????????# ** ; ! ## | | ???????????????????????# # #?? | | ???????????????????????# # * ! #?? | | ???????????????????????# ######## #### | | ???????????????????????# ] #?????# | | ???????????????????????##########?????# | | ??????????????????????????????????????# | | ??????????????????????????????????????# | | ??????????????????????????????????????# | | ??????????????????????????????????????# | | ??????????????????????????????????????+ | | ????????????????????????????????????? # | | ????????????????????????????????????? # | | ???????????????????????????????????? ?# ! | | ??????????????????????????????????????# | | ??????????????????????????????????????# | | ??????????????????????????????????????############ | +----------------------------------------------------+ Best States ------------- Heat Dissipation 61 Energy Generation 29 Energy Capacity 500 Matter Stores 300 Matter Capacity 300 Sight Range 16 Robot Scan Range 16 Terrain Scan Range 14 Terrain Scan Density 10 Armor Coverage 150 Resistance: EM 15 Evasion (%) 50 Item Schematics ----------------- None Robot Schematics ------------------ None Fabricated ------------ Nothing Alien Tech Used ----------------- None Achievements -------------- None Challenges ------------ None Game ------ Seed MagneticGaussFalx Manual? 0 Play Time 00:21:19 Cumulative 67.9 hours Start 2021.04.01 @ 14:42:53 End 2021.04.01 @ 15:01:53 Sessions 1 Manual Loads 0 Difficulty Rogue Special Mode AFD2021/Volatile Game No. 63 Rogue 63 Adventurer 0 Explorer 0 Win Type - Total 0 Types 0/0/0/0/0/0/0/0/0 Lore% 43 Gallery% 49 Achievement% 31 Wizard Run 0 Options --------- ASCII 1 Keyboard 1 Movement Numpad Keybinds 0 Fullscreen 2 Font 18/SmallcapsGlow Map View 76x50 Tactical HUD 1 Map Filters NONE Filters NONE Steam 1 RUN: bb2777a4-9093-4f56-88ce-48a78efbf030